[Event "Budapest One Week IM-B 03-2025"]
[Site "Budapest"]
[Date "2025.03.18"]
[Round "3.5"]
[White "Jing, Andrew"]
[Black "Turcsanyi, Vince Gergo"]
[Result "1/2-1/2"]
[Annotator "NA RC"]
[ECO "E11"]
[WhiteElo "2198"]
[BlackElo "2285"]
[PlyCount "99"]
[EventDate "2025.03.17"]
[EventType "tourn"]
[EventCountry "HUN"]
[SourceTitle "playchess.com"]
[Source "ChessBase"]
[SourceQuality "1"]
[TimeControl "5400+30"]

1. d4 {[%emt 0:06:53]} Nf6 {[%emt 0:00:13]} 2. Nf3 {[%emt 0:00:05]} e6 {[%emt 0:00:08]} 3. c4 {[%emt 0:00:04]} Bb4+ {[%emt 0:00:11]} 4. Nbd2 {[%emt 0:00:06]} O-O {[%emt 0:00:27]} 5. g3 {[%emt 0:00:06]} d6 {[%emt 0:02:28]} 6. Bg2 {[%emt 0:00:40]} a5 {[%emt 0:00:37]} 7. O-O {[%emt 0:02:19]} a4 {[%emt 0:00:38]} 8. Nb1 {[%emt 0:02:15]} Bd7 {[%emt 0:06:14]} 9. Bd2 {[%emt 0:03:26]} Bxd2 {[%emt 0:05:49]} 10. Qxd2 {[%emt 0:00:05]} Bc6 {[%emt 0:07:54]} 11. Rd1 {[%emt 0:03:48]} Qe7 {[%emt 0:03:21]} 12. Nc3 {[%emt 0:00:39]} e5 {[%emt 0:10:38]} 13. e3 {[%emt 0:06:42]} Ne4 {[%emt 0:10:13]} 14. Qc2 {[%emt 0:01:48]} Nxc3 {[%emt 0:07:48]} 15. Qxc3 {[%emt 0:00:04]} Bxf3 {[%emt 0:01:06]} 16. Bxf3 {[%emt 0:00:05]} e4 {[%emt 0:00:08]} 17. Bg2 {[%emt 0:00:03]} f5 {[%emt 0:10:30]} 18. b4 {[%emt 0:00:25]} Rf6 {[%emt 0:08:41]} 19. f4 {[%emt 0:02:45]} Nd7 {[%emt 0:01:39]} 20. c5 {[%emt 0:02:07]} d5 {[%emt 0:01:33]} 21. b5 {[%emt 0:00:10]} h6 {[%emt 0:03:51]} 22. Rab1 {[%emt 0:01:22]} g5 {[%emt 0:05:10]} 23. Rf1 {[%emt 0:02:29]} Nf8 {[%emt 0:03:42]} 24. Bh3 {[%emt 0:05:48]} Qh7 {[%emt 0:01:11]} 25. Kh1 {[%emt 0:00:44]} Ne6 {[%emt 0:01:13]} 26. Rb2 {[%emt 0:02:59]} Kf7 {[%emt 0:04:46]} 27. Rbf2 {[%emt 0:01:01]} g4 {[%emt 0:02:15]} 28. Bg2 {[%emt 0:00:04]} h5 {[%emt 0:00:06]} 29. h4 {[%emt 0:08:41]} gxh3 {[%emt 0:00:09]} 30. Bxh3 {[%emt 0:00:03]} Ng7 {[%emt 0:02:16]} 31. Rg1 {[%emt 0:01:07]} Rg6 {[%emt 0:00:27]} 32. Rfg2 {[%emt 0:00:41]} Ke6 {[%emt 0:00:06]} 33. a3 {[%emt 0:00:19]} Ne8 {[%emt 0:00:08]} 34. Qd2 {[%emt 0:01:42]} Nf6 {[%emt 0:00:05]} 35. Qe2 {[%emt 0:00:05]} Rag8 {[%emt 0:00:58]} 36. Qd1 {[%emt 0:01:11]} Ra8 {[%emt 0:01:09]} 37. Rh2 {[%emt 0:00:35]} Ng4 {[%emt 0:00:33]} 38. Bxg4 {[%emt 0:00:06]} Rxg4 {[%emt 0:00:04]} 39. Rh4 {[%emt 0:01:15]} Rag8 {[%emt 0:00:51]} 40. Kh2 {[%emt 0:01:46]} R8g6 {[%emt 0:00:41]} 41. Qe1 {[%emt 0:00:41]} Kd7 {[%emt 0:00:28]} 42. Qd1 {[%emt 0:00:45]} Ke6 {[%emt 0:00:30]} 43. Qe1 {[%emt 0:00:09]} Kd7 {[%emt 0:00:29]} 44. Qd1 {[%emt 0:00:05]} Ke7 {[%emt 0:00:29]} 45. Qe1 {[%emt 0:00:34]} Qh8 {[%emt 0:00:25]} 46. Qf2 {[%emt 0:00:28]} Kf7 {[%emt 0:00:30]} 47. Qa2 {[%emt 0:00:36]} Ke6 {[%emt 0:00:32]} 48. Qf2 {[%emt 0:00:06]} Rg7 {[%emt 0:00:30]} 49. Qf1 {[%emt 0:00:38]} Qe8 {[%emt 0:00:32]} 50. Qe2 {[%emt 0:00:28]} 1/2-1/2

[Event "Budapest One Week IM-B 03-2025"]
[Site "Budapest"]
[Date "2025.03.19"]
[Round "4.1"]
[White "Pribelszky, Bence"]
[Black "Turcsanyi, Vince Gergo"]
[Result "0-1"]
[Annotator "TA"]
[ECO "B10"]
[WhiteElo "2400"]
[BlackElo "2285"]
[PlyCount "76"]
[EventDate "2025.03.17"]
[EventType "tourn"]
[EventCountry "HUN"]
[SourceTitle "playchess.com"]
[Source "ChessBase"]
[SourceQuality "1"]
[TimeControl "5400+30"]

{[%evp 9,75,13,12,2,-9,-16,3,-4,-9,-16,-14,-13,9,-32,-22,-25,20,4,19,13,142,130,139,125,127,125,137,77,146,125,125,124,131,128,161,131,141,134,181,133,118,118,173,133,163,131,141,146,136,131,124,75,46,-139,-145,-139,-79,-265,-246,-441,-384,-1328,-152,-1312,-1329,-29998,-29999,-29999]} 1. e4 {[%emt 0:07:59]} c6 {[%emt 0:00:09]} 2. Nf3 {[%emt 0:00:16]} d5 {[%emt 0:00:09]} 3. e5 {[%emt 0:00:08]} c5 {[%emt 0:06:16]} 4. c4 {[%emt 0:01:59]} d4 {[%emt 0:06:14]} 5. Bd3 {[%emt 0:08:54]} Qc7 $146 {[%emt 0:06:56]} ({Predecessor:} 5... Nc6 6. Be4 g6 7. Bxc6+ bxc6 8. h3 Bg7 9. O-O a5 10. Qa4 Qb6 11. d3 Bf5 {½-½ Ponkratov,P (2625)-Bryakin,M (2459) Moscow-ch blitz 74th 2020 (3)}) 6. h3 {[%emt 0:10:09] B10: Caro-Kann: 2 d3 and 2 c4.} e6 {[%emt 0:09:46]} 7. O-O {[%emt 0:03:03]} Ne7 {[%emt 0:00:14]} 8. Re1 {[%emt 0:01:07] The position is equal.} Nd7 {[%emt 0:02:13]} 9. Qe2 {[%emt 0:06:14]} Nc6 {[%emt 0:03:12]} 10. Bc2 b6 {[%emt 0:15:04]} 11. Be4 {[%emt 0:11:33]} Bb7 {[%emt 0:01:18]} 12. d3 {[%emt 0:00:46]} g6 {[%emt 0:04:56][%cal Bg7g6,Bg6g5][%mdl 32]} 13. Bf4 {[%emt 0:13:25]} Bg7 {[%emt 0:04:22]} 14. Nbd2 {[%emt 0:00:41]} O-O-O {[%emt 0:05:02]} (14... a5 $11 {remains equal.}) 15. a3 $1 $16 {[%emt 0:00:37]} h6 {[%emt 0:06:32]} 16. b4 {[%emt 0:00:30][%cal Bb2b4,Bb4b5][%mdl 32]} g5 {[%emt 0:00:22]} 17. Bg3 {[%emt 0:02:15]} Bf8 {[%emt 0:00:35]} 18. Nb3 {[%emt 0:01:29]} (18. b5 $142 Na5 19. Bxb7+ Qxb7 20. Ne4) 18... Be7 {[%emt 0:02:55]} (18... cxb4 $142 19. Nfxd4 (19. Nbxd4 Nxd4 20. Nxd4 a6 $16) 19... Nxd4 20. Nxd4 a6) 19. b5 {[%emt 0:02:32]} Na5 {[%emt 0:05:40]} 20. Nxa5 {[%emt 0:00:15]} bxa5 {[%emt 0:00:07]} 21. Nd2 {[%emt 0:01:31]} h5 {[%emt 0:00:22]} 22. Bxb7+ {[%emt 0:07:26]} Qxb7 {[%emt 0:00:16]} 23. Nb3 {[%emt 0:00:41]} Qc7 {[%emt 0:04:04]} 24. a4 {[%emt 0:03:49]} (24. Qf3 $18) 24... Rdg8 {[%emt 0:00:35]} 25. Qe4 {[%emt 0:01:30]} (25. Qf3 Rg7 26. Qa8+ Nb8 $11) 25... Nb8 {[%emt 0:04:58]} (25... Rg7 $16 26. Qa8+ Nb8) 26. Reb1 {[%emt 0:01:39]} Rg7 {[%emt 0:01:25]} 27. Ra2 {[%emt 0:07:18]} Rhg8 {[%emt 0:01:49]} 28. Kh1 {[%emt 0:02:34]} h4 {[%emt 0:03:14]} 29. Bh2 {[%emt 0:00:05]} g4 {[%emt 0:00:04]} 30. Bf4 {[%emt 0:00:58]} ({White should try} 30. f4) 30... Bg5 {[%emt 0:03:10]} 31. Re2 $2 {[%emt 0:02:34]} (31. hxg4 Bxf4 32. Qxf4 Rxg4 $17) (31. Bxg5 $14 {stays ahead.} Rxg5 32. Re2) 31... Bxf4 $17 {[%emt 0:02:09]} 32. Qxf4 {[%emt 0:00:04]} f5 {[%emt 0:00:22] Prevents Qe4} 33. f3 $2 {[%emt 0:02:27]} (33. Rf1 $17 {keeps fighting.}) 33... gxh3 $19 {[%emt 0:00:37]} 34. gxh3 {[%emt 0:00:02] [#]} (34. Rbb2) 34... Rg3 $1 {[%emt 0:00:13] Threatens to win with ...Qg7.} 35. Rbb2 $2 {[%emt 0:00:59]} (35. Rh2) 35... Rg1+ {[%emt 0:00:39]} 36. Kh2 {[%emt 0:00:02] [#]} Qg7 {[%emt 0:00:06][%cal Og1h1] ( -> ...Rh1+!) Repels Rg2} (36... Nd7 37. Rg2 R8xg2+ (37... Qxe5 38. Qxe5 R8xg2+ 39. Rxg2 $16) (37... R1xg2+ 38. Rxg2 Rxg2+ 39. Kxg2 $11) 38. Rxg2 Rxg2+ (38... Qxe5 39. Qxe5 Rxg2+ 40. Kxg2 $16) 39. Kxg2 $11) 37. Nxd4 {[%emt 0:00:57] [#]} Rh1+ $3 {[%emt 0:00:06][%mdl 512]} 38. Kxh1 {[%emt 0:00:04]} Qg1# {[%emt 0:00:04] Weighted Error Value: White=0.61/Black=0.14 (very precise)   Loses game:     	White=2     	---        Mistake:       	White=6     	Black=3      Inaccurate:     	White=2     	Black=1      OK:         	White=10    	Black=15     Best:        	---       	Black=2      Strong:       	White=1     	Black=1} 0-1

[Event "Budapest One Week IM-B 03-2025"]
[Site "Budapest"]
[Date "2025.03.19"]
[Round "4.2"]
[White "Venkatesh, Narayan"]
[Black "Jing, Andrew"]
[Result "1/2-1/2"]
[Annotator "TA"]
[ECO "E73"]
[WhiteElo "2203"]
[BlackElo "2198"]
[PlyCount "93"]
[EventDate "2025.03.17"]
[EventType "tourn"]
[EventCountry "HUN"]
[SourceTitle "playchess.com"]
[Source "ChessBase"]
[SourceQuality "1"]
[TimeControl "5400+30"]

{[%evp 12,93,53,36,30,44,38,40,33,15,32,8,6,0,34,0,27,16,18,-4,16,0,38,16,18,21,23,16,13,12,56,22,30,28,26,0,0,0,0,0,0,0,0,-24,-29,-58,0,0,-9,-86,0,0,0,-3,0,0,0,0,29,0,0,0,0,0,0,0,0,0,0,0,0,0,0,-55,-71,-129,-106,-101,0,-107,-102,-94,-7,-8]} 1. d4 {[%emt 0:08:05]} Nf6 {[%emt 0:00:36]} 2. c4 {[%emt 0:00:02]} g6 {[%emt 0:00:09]} 3. Nc3 {[%emt 0:00:01]} Bg7 {[%emt 0:00:06]} 4. e4 {[%emt 0:00:02]} d6 {[%emt 0:00:06]} 5. Be2 {[%emt 0:00:07]} O-O {[%emt 0:00:05]} 6. Be3 {[%emt 0:00:01]} Nc6 {[%emt 0:01:05][%cal Bb8c6,Bc6e5,Be5g4][%mdl 32]} 7. d5 {[%emt 0:00:50]} Ne5 {[%emt 0:00:07] E73: King's Indian: Averbakh Variation without 6...c5.} 8. f4 $1 {[%emt 0:00:08] 8.f4 scores better than 8.h3.} Neg4 {[%emt 0:00:04]} 9. Bd2 {[%emt 0:00:08]} Nh6 {[%emt 0:00:04] White is slightly better.} 10. Nf3 {[%emt 0:00:18]} c6 {[%emt 0:01:20]} 11. a4 {[%emt 0:00:30]} e6 {[%emt 0:02:10]} 12. dxe6 {[%emt 0:01:48]} fxe6 {[%emt 0:01:00][%cal Oe6e5]} 13. a5 {[%emt 0:04:58][%cal Oc4c5]} Nf7 $146 {[%emt 0:14:37]} (13... Nh5 14. g3 e5 15. fxe5 dxe5 16. Bg5 Qc7 17. c5 Nf7 18. Bc4 Kh8 19. Be3 Bh3 {0-1 Agmanov,Z (2403)-Adhiban,B (2538) Wch Rapid Almaty 2022 (7)}) 14. O-O {[%emt 0:02:26][%cal Oc4c5]} e5 {[%emt 0:00:43]} 15. fxe5 {[%emt 0:03:22]} dxe5 {[%emt 0:08:52]} 16. Be3 {[%emt 0:05:27]} Qc7 {[%emt 0:03:33]} 17. Kh1 {[%emt 0:04:56]} Be6 {[%emt 0:03:11]} 18. Qc2 {[%emt 0:03:02]} Ng4 {[%emt 0:04:15]} 19. Bg1 {[%emt 0:04:41]} Bh6 {[%emt 0:01:28]} 20. Nd1 {[%emt 0:02:54] Repels Ne3} Ng5 {[%emt 0:05:54]} 21. c5 {[%emt 0:05:20]} Nxf3 {[%emt 0:00:48]} 22. Bxf3 {[%emt 0:00:49]} a6 {[%emt 0:04:26]} 23. h3 {[%emt 0:09:48]} (23. Bxg4 $5 Bxg4 24. Qc4+ Kh8 25. Ne3 $14) 23... Nf6 {[%emt 0:00:08]} 24. Ne3 {[%emt 0:00:38]} Rad8 {[%emt 0:02:29]} 25. Be2 {[%emt 0:02:33]} Kg7 {[%emt 0:01:00]} 26. Bc4 {[%emt 0:04:46]} Bc8 {[%emt 0:00:40]} 27. Rf3 {[%emt 0:04:40]} Nh5 {[%emt 0:02:23] [#]} 28. Raf1 {[%emt 0:03:28]} Rxf3 {[%emt 0:00:28] Successful Defense Black} (28... Qxa5 $15 29. Rxf8 (29. Rf7+ $2 Kh8 $17) 29... Rxf8 30. Rxf8 Kxf8) 29. Rxf3 $11 {[%emt 0:00:03]} Bf4 {[%emt 0:03:03]} 30. Qf2 {[%emt 0:04:34] Wards off Ng3+} (30. Nf1 $1 $11 {keeps the balance.}) 30... Rf8 {[%emt 0:02:16]} (30... Qxa5 31. g4 Rd2 32. Qf1 $14) (30... Nf6 $17 31. Qc2 Qxa5) 31. Nf1 {[%emt 0:04:08]} Qe7 {[%emt 0:00:26]} (31... Qxa5 32. g3 $14) 32. b4 {[%emt 0:01:25]} Bg5 {[%emt 0:02:06]} 33. Bh2 {[%emt 0:02:07]} Rxf3 {[%emt 0:02:44]} 34. Qxf3 {[%emt 0:00:12]} Nf4 {[%emt 0:00:04]} 35. Qd1 {[%emt 0:01:09]} Be6 {[%emt 0:01:31]} 36. Nd2 {[%emt 0:01:26]} Qd7 {[%emt 0:00:34]} 37. Bxe6 {[%emt 0:01:20]} Qxe6 {[%emt 0:01:20]} 38. Nf3 {[%emt 0:05:09]} Bf6 {[%emt 0:00:11]} 39. Bxf4 {[%emt 0:02:48]} exf4 {[%emt 0:00:02][%mdl 4096] Endgame KQB-KQN} 40. Qd3 {[%emt 0:00:17]} h5 {[%emt 0:01:25]} 41. Nd2 {[%emt 0:03:01]} Qe5 {[%emt 0:01:41]} 42. Qd7+ {[%emt 0:01:43]} (42. Nf3 $11 Qe7 43. Qe2) 42... Qe7 $15 {[%emt 0:03:48]} 43. Qxe7+ {[%emt 0:02:07]} ({White should try} 43. Qd3) 43... Bxe7 $17 {[%emt 0:00:05]} 44. Nc4 {[%emt 0:00:03]} Kf8 {[%emt 0:02:47]} (44... Bf6 $17 45. Kg1 Bc3) 45. Nd6 {[%emt 0:02:19]} (45. Ne5 $11 g5 46. h4) 45... Bf6 {[%emt 0:00:04]} 46. Nxb7 {[%emt 0:02:11][%cal Oe4e5] [#]} Bc3 {[%emt 0:00:00]} ({Black should play} 46... Ke7 $1 $17 {Threatens to win with ...g5.} 47. Kg1 g5 (47... Bc3 48. Kf2 $11)) 47. Nd8 $1 {[%emt 0:00:58] Weighted Error Value: White=0.19 (very precise) /Black=0.16 (very precise)   Mistake:       	White=4     	Black=4      Inaccurate:     	White=5     	Black=5      OK:         	White=10    	Black=19     Best:        	---       	Black=1      Strong:       	White=1     	---} 1/2-1/2

[Event "Budapest One Week IM-B 03-2025"]
[Site "Budapest"]
[Date "2025.03.19"]
[Round "4.3"]
[White "Shah, Vishwa"]
[Black "Varga, Zoltan"]
[Result "1/2-1/2"]
[Annotator "TA"]
[ECO "B01"]
[WhiteElo "2172"]
[BlackElo "2305"]
[PlyCount "22"]
[EventDate "2025.03.17"]
[EventType "tourn"]
[EventCountry "HUN"]
[SourceTitle "playchess.com"]
[Source "ChessBase"]
[SourceQuality "1"]
[TimeControl "5400+30"]

{[%evp 9,21,14,28,0,70,63,56,51,59,73,79,39,35,42]} 1. e4 {[%emt 0:00:03]} d5 {[%emt 0:16:32]} 2. exd5 {[%emt 0:00:07]} Qxd5 {[%emt 0:00:05]} 3. Nc3 {[%emt 0:00:14]} Qd6 {[%emt 0:00:06]} 4. d4 {[%emt 0:00:52]} Nf6 {[%emt 0:00:06]} 5. Nb5 {[%emt 0:00:53]} Qd8 {[%emt 0:00:57]} 6. c4 {[%emt 0:00:38] B01: Scandinavian Defence.} g6 {[%emt 0:01:38]} (6... a6 $11 7. Nc3 e5 8. dxe5 Nfd7) 7. Bf4 {[%emt 0:04:04] White is more active.} Na6 {[%emt 0:00:07]} 8. Nf3 {[%emt 0:00:11]} Bg7 {[%emt 0:01:08]} 9. Be2 {[%emt 0:00:18]} Ne4 $146 {[%emt 0:04:31]} (9... O-O 10. O-O c5 11. dxc5 Ne4 12. Qc2 Nexc5 13. Rad1 Bf5 14. Rxd8 Bxc2 15. Rxa8 Rxa8 {0-1 Kobalia,M (2614)-Ponkratov,P (2631) Titled Tuesday intern op 25th Aug blitz 2020 (6)}) 10. Bd3 {[%emt 0:09:18]} Nd6 {[%emt 0:00:14]} 11. Nxd6+ {[%emt 0:05:39]} cxd6 {[%emt 0:00:21] Weighted Error Value: White=0.13 (very precise) /Black=0.21 (precise)   Mistake:       	---       	Black=1      Inaccurate:     	White=1     	---        OK:         	White=2     	Black=2} 1/2-1/2

[Event "Budapest One Week IM-B 03-2025"]
[Site "Budapest"]
[Date "2025.03.19"]
[Round "4.5"]
[White "Mrithyunjay Mahadevan"]
[Black "Luebke, Florentin"]
[Result "1/2-1/2"]
[Annotator "TA"]
[ECO "B27"]
[WhiteElo "2295"]
[BlackElo "2233"]
[PlyCount "110"]
[EventDate "2025.03.17"]
[EventType "tourn"]
[EventCountry "HUN"]
[SourceTitle "playchess.com"]
[Source "ChessBase"]
[SourceQuality "1"]
[TimeControl "5400+30"]

{[%evp 9,110,67,68,63,87,91,146,42,32,33,50,14,-7,-53,-47,-68,-70,-82,-42,-65,-68,-66,-58,-62,-45,-42,-25,-28,-30,-33,-35,-49,0,-29,-9,-20,0,0,0,0,0,0,0,0,0,0,40,32,39,38,20,12,100,63,106,0,0,0,0,0,0,0,0,0,0,0,120,120,120,120,120,120,120,120,120,120,120,111,227,220,209,0,0,0,120,120,120,120,120,0,120,120,120,120,120,120,120,120,120,120,120,93,32]} 1. e4 {[%emt 0:12:58]} c5 {[%emt 0:00:07]} 2. Nf3 {[%emt 0:00:07]} g6 {[%emt 0:00:43]} 3. c3 {[%emt 0:00:10][%cal Bc2c3,Bc3c4][%mdl 32]} d5 {[%emt 0:01:32]} 4. exd5 {[%emt 0:00:06]} Nf6 {[%emt 0:02:31]} 5. Bb5+ {[%emt 0:00:35]} Bd7 $146 {[%emt 0:01:22]} (5... Nbd7 6. d4 cxd4 7. Qxd4 Bg7 8. O-O O-O 9. d6 e6 10. Na3 a6 11. Bxd7 Bxd7 {1-0 Petr,M (2479)-Zwardon,V (2498) CZE-ch Bystrice nad Pernstejnem 2023 (8)}) 6. Bxd7+ {[%emt 0:00:06] B27: Sicilian: 2 Nf3, unusual Black 2nd moves.} Qxd7 {[%emt 0:01:11]} 7. c4 {[%emt 0:00:15]} Qg4 {[%emt 0:07:45] [#]} ({Black should try} 7... Bg7) 8. Qa4+ {[%emt 0:00:18]} (8. Qb3 $1 $16 {[%cal Rb3b7]} Qe4+ 9. Kd1) 8... Nbd7 $14 {[%emt 0:00:25]} 9. O-O {[%emt 0:00:20]} Nxd5 {[%emt 0:01:16]} 10. Ne5 {[%emt 0:15:56]} N5b6 {[%emt 0:01:20]} 11. Nxg4 {[%emt 0:07:23] A sharp opening} (11. Qb5 $11 Qd4 (11... a6 12. Qxb6 Nxe5 13. Qxb7 $11) 12. Nxd7 Qxd7 13. Qxc5) 11... Nxa4 $15 {[%emt 0:00:13]} 12. Nc3 {[%emt 0:00:08]} Nxc3 {[%emt 0:01:36]} 13. dxc3 {[%emt 0:00:11]} f5 {[%emt 0:08:31]} 14. Ne3 {[%emt 0:00:18]} e6 {[%emt 0:00:43] Prevents Nd5.} 15. Re1 $1 {[%emt 0:00:40]} Kf7 {[%emt 0:00:35]} 16. Nf1 {[%emt 0:05:34]} Bg7 {[%emt 0:03:35]} 17. Be3 {[%emt 0:01:42]} b6 {[%emt 0:01:09]} 18. Rad1 {[%emt 0:00:46]} Rhd8 {[%emt 0:13:28]} 19. Bf4 {[%emt 0:03:07] Strongly threatening Bc7. Dodges Ne5} Nf6 {[%emt 0:01:01]} 20. Nd2 {[%emt 0:01:58]} h6 {[%emt 0:08:39]} (20... Nh5 $15 {is more appropriate.} 21. Bg5 Rd7) 21. h4 {[%emt 0:01:09]} Nh5 {[%emt 0:02:49]} 22. Bh2 {[%emt 0:00:22]} Rd3 {[%emt 0:01:18] ...Rad8 would now be deadly.} 23. Nf3 {[%emt 0:01:05]} Rad8 {[%emt 0:00:42]} 24. Rxd3 {[%emt 0:00:07]} Rxd3 {[%emt 0:00:10]} 25. Kf1 {[%emt 0:01:36]} Rd7 {[%emt 0:21:16]} 26. a4 {[%emt 0:01:01]} a5 {[%emt 0:01:14]} 27. Ke2 {[%emt 0:00:30]} Ke8 {[%emt 0:08:09]} 28. Ne5 {[%emt 0:03:26]} Bxe5 {[%emt 0:01:37]} 29. Bxe5 $14 {[%emt 0:00:03][%cal Ob2b4][%mdl 4096] Endgame KRB-KRN} Ke7 {[%emt 0:03:17]} 30. Rd1 {[%emt 0:07:14]} Rb7 {[%emt 0:02:27]} (30... Rxd1 $1 $11 {keeps the balance.} 31. Kxd1 Nf6) 31. f3 {[%emt 0:02:30]} f4 {[%emt 0:02:31]} 32. Rd3 {[%emt 0:01:12] White is more active.} (32. Kd3 $16) 32... g5 $11 {[%emt 0:01:10]} 33. hxg5 {[%emt 0:03:13]} hxg5 {[%emt 0:00:01]} 34. Kf2 {[%emt 0:00:11]} Nf6 {[%emt 0:00:58]} 35. g3 {[%emt 0:02:49]} Nh5 {[%emt 0:01:50]} 36. gxf4 {[%emt 0:00:14]} (36. g4 $5 Nf6 $8 37. Rd1 $11) 36... Nxf4 {[%emt 0:00:02]} 37. Rd1 {[%emt 0:00:38]} Rd7 {[%emt 0:01:09] [#]} (37... Ng6 $11 38. Bg3 Rd7 39. Rxd7+ Kxd7) 38. Bf6+ $1 $16 {[%emt 0:00:32][%mdl 512]} Ke8 {[%emt 0:00:02]} 39. Rxd7 {[%emt 0:00:23]} Kxd7 {[%emt 0:00:02] KB-KN} 40. Ke3 {[%emt 0:00:23] Prevents Nd3.} Nh3 {[%emt 0:00:52]} 41. b3 {[%emt 0:00:52]} Kd6 {[%emt 0:01:08]} 42. Bd8 {[%emt 0:00:24]} Kc6 {[%emt 0:00:02]} 43. Ke4 {[%emt 0:02:09]} Nf2+ {[%emt 0:00:06]} (43... Kb7 $16 {keeps fighting.}) 44. Ke5 $18 {[%emt 0:01:18]} Nd3+ {[%emt 0:01:16]} 45. Ke4 {[%emt 0:01:36]} (45. Kxe6 $18 Ne1 46. Bxg5 Nxf3 47. Be3) 45... Nf2+ $16 {[%emt 0:00:06]} 46. Ke3 {[%emt 0:00:14]} Nh3 {[%emt 0:00:11] [#]} 47. Ke2 $1 {[%emt 0:00:42]} Kb7 {[%emt 0:00:48]} 48. Kf1 {[%emt 0:00:34]} Kc6 {[%emt 0:00:05]} 49. Ke2 {[%emt 0:03:10]} Kb7 $1 {[%emt 0:00:05]} 50. Kd2 {[%emt 0:00:08] White is better.} Kc6 {[%emt 0:01:11]} 51. Ke3 {[%emt 0:00:06]} Kb7 {[%emt 0:00:17]} 52. Ke2 {[%emt 0:03:44]} Kc6 {[%emt 0:00:15]} 53. Kf1 {[%emt 0:00:04]} Kb7 {[%emt 0:00:22]} 54. Kg2 {[%emt 0:00:19]} Nf4+ {[%emt 0:00:03]} 55. Kf2 {[%emt 0:00:08]} Kc6 {[%emt 0:00:38] Weighted Error Value: White=0.18 (very precise) /Black=0.16 (very precise)   Mistake:       	White=4     	Black=5      Inaccurate:     	White=3     	Black=3      OK:         	White=21    	Black=18     Best:        	White=3     	Black=6      Strong:       	White=2     	Black=1} 1/2-1/2